{"text_format":"1","workbook":"xlsx","n_sheets":5,"sheets":["العمليات","الملاك","نقل","الفصل","الاستقالة"],"not_rendered":{"charts":0,"images":3,"macros":1,"external_links":0,"defined_names":6,"comments":0,"pivot_tables":0},"unopened":[],"bounds":{"document_bytes":16777216,"sheet_cells":100000,"rows_first":2000,"rows_last":500,"rows_between":2000,"halvings":0,"cell_chars":16384,"cell_head_chars":4096},"cells_cut":0,"cells_raw":0,"read":"whole","date_system":"1900"}

{"sheet":"العمليات","index":0,"n_rows":14,"n_cols":27,"rows_kept":14,"cut":false,"hidden":false,"merged":[]}
[null,null,null,null,null,null,null,null,null,null,null,null,null,null,null,null,null,null,null,null,null,null,null,null,null,null,"تقاعد"]
[]
[]
[]
[]
[null,"بحث بنوع الحركة",null,null,null,null,null,11,null,null,null,null,"نوع الحركة"]
[null,null,null,null,null,null,null,null,null,null,null,null,"سحب يد"]
[null,null,null,null,null,null,null,null,null,null,null,null,"نقل"]
[null,null,null,null,null,null,null,null,null,null,null,null,"الفصل"]
[null,null,null,null,null,null,null,null,null,null,null,null,"الاستقالة"]
["الرمز","الاسم","اللقب","القسم","العنوان الوظيفي","نوع الحركة","رقم الامر",null,"تاريخ الامر",null,null,null,"التقاعد"]
[null,null,null,null,null,null,null,null,null,null,null,null,"تغيير العنوان"]
[null,null,null,null,null,null,null,null,null,null,null,null,"وفاة"]
[null,null,null,null,null,null,null,null,null,null,null,null,"المتغيرات"]

{"sheet":"الملاك","index":1,"n_rows":22,"n_cols":12,"rows_kept":22,"cut":false,"hidden":false,"merged":[]}
["التسلسل","الرمز","الاسم","اللقب","القسم","العنوان الوظيفي","نوع الحركة","رقم الامر","تاريخ الامر","الشهادة","الدرجة","الاستمارة"]
[{"$f":"IF(C2=\"\",\"\",SUBTOTAL(103,$C$2:C2))","v":1},"a","Salim","ABC","جواد العباسي","قسم المالية","مدير حسابات أقدم","نقل","av","qa","اعدادية محاسبة"]
[{"$f":"IF(C3=\"\",\"\",SUBTOTAL(103,$C$2:C3))","v":2},"B","AMN","علي الهاشمي","قسم التحويل","مهندس تقني اقدم",null,null,null,"بكلوريوس تكببف وتبريد",5]
[{"$f":"IF(C4=\"\",\"\",SUBTOTAL(103,$C$2:C4))","v":3},"C","Bcp","عيسى البيضاني","قسم الاتصالات","معاون مدير فني","الاستقالة",15040,"2020-12-12","مركز تدريب تدريب مهني",4]
[{"$f":"IF(C5=\"\",\"\",SUBTOTAL(103,$C$2:C5))","v":4},"D","frty","عبد الله السميلي","قسم التحويل","معاون مدير",null,null,null,"اعدادية علمى",4]
[{"$f":"IF(C6=\"\",\"\",SUBTOTAL(103,$C$2:C6))","v":5},"E","Drea","سلمان العكيدي","قسم خطوط النقل","رئيس مهندسين أقدم","الترقية",525,"2019-01-10","بكلوريوس هندسة كهرباء",2]
[{"$f":"IF(C7=\"\",\"\",SUBTOTAL(103,$C$2:C7))","v":6},"F","DFBA","صالح الراوي","شعبة الفحص الهندسىى","مدير فني أقدم",null,null,null,"اعدادية صناعة",2]
[{"$f":"IF(C8=\"\",\"\",SUBTOTAL(103,$C$2:C8))","v":7},"G","LDCE","محمود الربيعي","قسم الشؤون الادارية والمالية","مدير أقدم","الترقية",25239,"2019-12-30","بكلوريوس ادارة",2]
[{"$f":"IF(C9=\"\",\"\",SUBTOTAL(103,$C$2:C9))","v":8},"H","HLAE","سعدون الكعبي","قسم خطوط النقل","مدير فني أقدم",null,null,null,"دبلوم كهرباء",2]
[{"$f":"IF(C10=\"\",\"\",SUBTOTAL(103,$C$2:C10))","v":9},"I","HJBD","محمد الجنابي","قسم خطوط النقل","مهندس تقني اقدم",null,null,null,"بكلوريوس هندسة مكائن ومعدات",5]
[{"$f":"IF(C11=\"\",\"\",SUBTOTAL(103,$C$2:C11))","v":10},"J","JPIN","عبد الله الموصلي","قسم التحويل","معاون مدير فني",null,null,null,"دبلوم كهرباء",4]
[{"$f":"IF(C12=\"\",\"\",SUBTOTAL(103,$C$2:C12))","v":11},"K","NBBN","خلف العادلي","قسم التحويل","معاون مدير فني",null,null,null,"دبلوم مكائن",4]
[{"$f":"IF(C13=\"\",\"\",SUBTOTAL(103,$C$2:C13))","v":12},"L","DHJP","تايه المسعودي","قسم المخازن","رئيس سواق أقدم",null,null,null,"ابتدائية لا يوجد",5]
[{"$f":"IF(C14=\"\",\"\",SUBTOTAL(103,$C$2:C14))","v":13},"13","M","KNCG","حمدي النجار","قسم القابلوات","معاون مدير","we","e","e","wert"]
[{"$f":"IF(C15=\"\",\"\",SUBTOTAL(103,$C$2:C15))","v":14},"N","DBPC","جاسم العكيدي","قسم التحويل","معاون مهندس تقني",null,null,null,"بكلوريوس هندسة تقنيات القدرة",7]
[{"$f":"IF(C16=\"\",\"\",SUBTOTAL(103,$C$2:C16))","v":15},"O","HJBBH","شهد الخفاجي","قسم القابلوات","رئيس سواق أقدم",null,null,null,"بدون شهادة لا يوجد",5]
[{"$f":"IF(C17=\"\",\"\",SUBTOTAL(103,$C$2:C17))","v":16},"P","KDPH","خضر الخزاعي","قسم خطوط النقل","رئيس سواق أقدم",null,null,null,"بدون شهادة لا يوجد",5]
[{"$f":"IF(C18=\"\",\"\",SUBTOTAL(103,$C$2:C18))","v":17},"Q","DIGF","الندا المولى","قسم التحويل","مدير فني",null,null,null,"اعدادية كهرباء",3]
[{"$f":"IF(C19=\"\",\"\",SUBTOTAL(103,$C$2:C19))","v":18},"R","NCMG","سعدون دراجي","قسم المالية","محاسب أقدم",null,null,null,"بكلوريوس محاسبة",5]
[{"$f":"IF(C20=\"\",\"\",SUBTOTAL(103,$C$2:C20))","v":19},"S","KAGL","راشد العكيلي","قسم التحويل","معاون مدير فني",null,null,null,"دبلوم كهرباء",4]
[{"$f":"IF(C21=\"\",\"\",SUBTOTAL(103,$C$2:C21))","v":20},"T","MFIA","عبد الله الموصلي","قسم خطوط النقل","مدير فني",null,null,null,"مركز تدريب كهرباء",3]
[null,""]

{"sheet":"نقل","index":2,"n_rows":22,"n_cols":11,"rows_kept":22,"cut":false,"hidden":false,"merged":[]}
["التسلسل","الرمز","الاسم","اللقب","القسم","العنوان الوظيفي","نوع الحركة","رقم الامر","تاريخ الامر","الشهادة","الدرجة"]
[{"$f":"IF(C2=\"\",\"\",SUBTOTAL(103,$C$2:C2))","v":1},"M","احلام قاسم شندوخ","جواد العباسي","قسم المالية","مدير حسابات أقدم","نقل","aw","ww","qw","sda"]
[{"$f":"IF(C3=\"\",\"\",SUBTOTAL(103,$C$2:C3))","v":2},"H","سعدون خليل ابراهيم","علي الهاشمي","قسم التحويل","مهندس تقني اقدم","نقل",23574,"2019-12-17"]
[{"$f":"IF(C4=\"\",\"\",SUBTOTAL(103,$C$2:C4))","v":3},"Q","مهند علي ناصر","عيسى البيضاني","قسم الاتصالات","معاون مدير فني","نقل",15175,"2019-09-17"]
[{"$f":"IF(C5=\"\",\"\",SUBTOTAL(103,$C$2:C5))","v":4},"A","بشرى احمد نجم","عبد الله السميلي","قسم التحويل","معاون مدير","نقل",15175,"2019-09-17"]
[{"$f":"IF(C6=\"\",\"\",SUBTOTAL(103,$C$2:C6))","v":5},"S","اركان عثمان حمود","سلمان العكيدي","قسم خطوط النقل","رئيس مهندسين أقدم","نقل"]
[{"$f":"IF(C7=\"\",\"\",SUBTOTAL(103,$C$2:C7))","v":6},"G","HENJ","صالح الراوي","شعبة الفحص الهندسىى","مدير فني أقدم","نقل"]
[{"$f":"IF(C8=\"\",\"\",SUBTOTAL(103,$C$2:C8))","v":7},"P","LKPJ","محمود الربيعي","قسم الشؤون الادارية والمالية","مدير أقدم","نقل"]
[{"$f":"IF(C9=\"\",\"\",SUBTOTAL(103,$C$2:C9))","v":8},"G","MGOD","سعدون الكعبي","قسم خطوط النقل","مدير فني أقدم","نقل"]
[{"$f":"IF(C10=\"\",\"\",SUBTOTAL(103,$C$2:C10))","v":9},"N","DJIG","محمد الجنابي","قسم خطوط النقل","مهندس تقني اقدم","نقل"]
[{"$f":"IF(C11=\"\",\"\",SUBTOTAL(103,$C$2:C11))","v":10},"P","MEGC","عبد الله الموصلي","قسم التحويل","معاون مدير فني","نقل"]
[{"$f":"IF(C12=\"\",\"\",SUBTOTAL(103,$C$2:C12))","v":11},"L","CNCM","خلف العادلي","قسم التحويل","معاون مدير فني","نقل"]
[{"$f":"IF(C13=\"\",\"\",SUBTOTAL(103,$C$2:C13))","v":12},"F","IEMO","تايه المسعودي","قسم المخازن","رئيس سواق أقدم","نقل"]
[{"$f":"IF(C14=\"\",\"\",SUBTOTAL(103,$C$2:C14))","v":13},"B","AIDG","حمدي النجار","قسم القابلوات","معاون مدير","نقل"]
[{"$f":"IF(C15=\"\",\"\",SUBTOTAL(103,$C$2:C15))","v":14},"14","A","DDIA","جاسم العكيدي","قسم التحويل","معاون مهندس تقني","نقل","we","ee","qe"]
[{"$f":"IF(C16=\"\",\"\",SUBTOTAL(103,$C$2:C16))","v":15},"G","KCPI","شهد الخفاجي","قسم القابلوات","رئيس سواق أقدم","نقل"]
[{"$f":"IF(C17=\"\",\"\",SUBTOTAL(103,$C$2:C17))","v":16},"K","AHAP","خضر الخزاعي","قسم خطوط النقل","رئيس سواق أقدم","نقل"]
[{"$f":"IF(C18=\"\",\"\",SUBTOTAL(103,$C$2:C18))","v":17},"C","LCCL","الندا المولى","قسم التحويل","مدير فني","نقل"]
[{"$f":"IF(C19=\"\",\"\",SUBTOTAL(103,$C$2:C19))","v":18},"R","BCFL","سعدون دراجي","قسم المالية","محاسب أقدم","نقل"]
[{"$f":"IF(C20=\"\",\"\",SUBTOTAL(103,$C$2:C20))","v":19},"G","BCID","راشد العكيلي","قسم التحويل","معاون مدير فني","نقل"]
[{"$f":"IF(C21=\"\",\"\",SUBTOTAL(103,$C$2:C21))","v":20},"H","BMFJ","عبد الله الموصلي","قسم خطوط النقل","مدير فني"]
[null,""]

{"sheet":"الفصل","index":3,"n_rows":22,"n_cols":11,"rows_kept":22,"cut":false,"hidden":false,"merged":[]}
["التسلسل","الرمز","الاسم","اللقب","القسم","العنوان الوظيفي","نوع الحركة","رقم الامر","تاريخ الامر","الشهادة","الدرجة"]
[null,"S","نور غسان عبد الرزاق",null,null,"مدير فني اقدم","عزل",8406,"2020-02-27"]
[null,"P","رائد محمد كاظم"]
[null,"H","جاسم هاشم كصاد"]
[null,"M","رسول بدن جبر"]
[null,"G","علاء خلف حمد"]
[null,"R","DGDO"]
[null,"D","HJFE"]
[null,"B","IFEH"]
[null,"R","KJJN"]
[null,"L","JHMA"]
[null,"J","DLEI"]
[null,"A1","M","FDCI","e","y","r","t","t","rt","tt"]
[null,"H","OJPD"]
[null,"P","FLAK"]
[null,"R","IEPB"]
[null,"G","EAFG"]
[null,"H","DNBN"]
[null,"B","BBIG"]
[null,"K"]
[null,"M"]
[null,""]

{"sheet":"الاستقالة","index":4,"n_rows":22,"n_cols":11,"rows_kept":22,"cut":false,"hidden":false,"merged":[]}
["التسلسل","الرمز","الاسم","اللقب","القسم","العنوان الوظيفي","نوع الحركة","رقم الامر","تاريخ الامر","الشهادة","الدرجة"]
[null,"D","حسين جبار نبهان","فياج البيضاني","شعبة النقليات","حرفي اقدم","الاستقالة",22721,"2019-12-09"]
[null,"J","حسين راضي حسن","ag","قسم القابلوات","ر سواق أقدم","الاستقالة",16352,"2019-10-07"]
[null,"P","علي صباح اسماعيل حاجم","الحسناوي","قسم التحويل","معاون ملاحظ فني","الاستقالة",8995,"2020-07-12"]
[null,"T","وسام هاشم جعفر","احمد الهاشمي","قسم التحويل","معاون ملاحظ فني","الاستقالة",2262,"2021-02-08"]
[null,"F"]
[null,"S"]
[null,"M"]
[null,"M"]
[null,"H"]
[null,"L"]
[null,"B"]
[null,"H"]
[null,"G"]
[null,"N"]
[null,"F"]
[null,"L"]
[null,"C"]
[null,"P"]
[null,"C"]
[null,"K"]
[null,""]